bitfinex/quotes_SOLUSD_20250601
["timestamp","ask_amount","ask_price","bid_price","bid_amount"]
[1748737567726,10.58,156.07,156.01,10.51800184]
[1748737567889,10.51800184,156.06,156.01,10.51800184]
[1748737568333,10.51800184,156.05,156.0,10.51800184]
[1748737568503,10.51800184,156.04,156.0,10.51800184]
[1748737569331,10.51800184,156.04,156.01,6.40984552]
[1748737570223,10.58,156.07,155.99,6.41066735]
[1748737570224,10.51800184,156.02,155.99,6.41066735]
[1748737570400,10.51800184,156.01,155.99,6.41066735]
[1748737570918,10.51800184,156.02,155.99,6.41066735]
[1748737571619,10.51800184,156.02,155.98,6.41107834]
[1748737572600,10.51800184,156.03,155.98,32.95677603]
[1748737572925,1.6304,156.06,156.0,10.51800184]
[1748737572926,10.51800184,156.04,156.0,10.51800184]
[1748737574313,10.51800184,156.04,155.99,10.51800184]
[1748737574522,10.51800184,156.03,155.98,26.54569769]
[1748737576316,10.51800184,156.03,155.98,32.95677603]
[1748737578306,10.51800184,156.04,155.99,10.51800184]
[1748737580030,10.51800184,156.04,156.0,22.43589743]
[1748737580217,1.6304,156.06,156.0,22.43589743]
[1748737580218,10.51800184,156.05,156.0,32.95389927]
[1748737580712,10.51800184,156.05,156.01,10.51800184]
[1748737581509,10.51800184,156.05,156.02,6.40943468]
[1748737582027,21.09800184,156.07,156.02,32.95102323]
[1748737582223,10.51800184,156.08,156.03,10.51800184]
[1748737583310,10.51800184,156.08,156.04,6.40861317]
[1748737584009,10.51800184,156.1,156.06,10.51800184]
[1748737584214,10.51800184,156.1,156.05,10.51800184]
[1748737584412,10.51800184,156.09,156.05,10.51800184]
[1748737585210,10.51800184,156.1,156.06,6.40779187]
[1748737586419,10.51800184,156.09,156.06,6.40779187]
[1748737587612,7.7541,156.13,156.06,32.94527339]
[1748737587834,10.51800184,156.12,156.08,10.51800184]
[1748737588127,18.27210184,156.13,156.08,10.51800184]
[1748737588330,18.27210184,156.13,156.09,6.40656031]
[1748737588520,10.51800184,156.12,156.09,6.40656031]
[1748737593025,10.51800184,156.11,156.09,6.40656031]
[1748737594142,1.6554,156.13,156.08,22.42433473]
[1748737594339,10.51800184,156.11,156.08,22.42433473]
[1748737595330,10.51800184,156.12,156.08,22.42433473]
[1748737596243,10.51800184,156.12,156.08,6.40697078]
[1748737598935,10.51800184,156.13,156.08,32.94239958]
[1748737599527,10.51800184,156.14,156.1,10.51800184]
[1748737600454,10.51800184,156.15,156.11,10.51800184]
[1748737600832,10.51800184,156.15,156.12,6.40532923]
[1748737603164,29.89010883,156.16,156.12,6.40532923]
[1748737603345,1.6264,156.16,156.12,32.93665415]
[1748737605553,1.6264,156.16,156.13,10.51800184]
[1748737605758,10.51800184,156.14,156.09,42.01570605]
[1748737605972,10.51800184,156.13,156.09,42.01570605]
[1748737607069,10.51800184,156.13,156.1,6.4061499]
[1748737607566,8.03014108,156.16,156.03,100.16]
[1748737607567,10.51800184,156.11,156.03,100.16]
[1748737607760,10.51800184,156.09,156.04,16.92661501]
[1748737608070,10.51800184,156.08,156.04,42.92661501]
[1748737609173,10.51800184,156.05,156.0,16.92825825]
[1748737609392,52.47246031,156.09,156.0,6.41025641]
[1748737609393,10.51800184,156.03,156.0,6.41025641]
[1748737609554,10.51800184,156.03,156.0,32.41025641]
[1748737609749,10.51800184,156.03,156.0,6.41025641]
[1748737609951,10.51800184,156.03,156.01,26.0]
[1748737610678,10.51800184,156.04,156.01,26.0]
[1748737611273,10.51800184,156.02,155.97,16.92949122]
[1748737611473,10.51800184,156.01,155.97,16.92949122]
[1748737611656,22.42583455,156.07,155.95,10.56]
[1748737611657,10.51800184,155.99,155.95,10.56]
[1748737611859,10.51800184,155.97,155.92,16.93154724]
[1748737612062,10.51800184,155.96,155.93,26.0]
[1748737612467,10.51800184,155.97,155.93,26.0]
[1748737613066,10.51800184,155.97,155.93,32.41285735]
[1748737613420,10.51800184,155.97,155.89,18.933972]
[1748737613421,10.51800184,155.94,155.89,10.51800184]
[1748737613569,10.51800184,155.96,155.91,10.51800184]
[1748737615189,41.5607,155.99,155.9,26.0]
[1748737615190,10.51800184,155.93,155.9,6.41436818]
[1748737615394,10.51800184,155.93,155.91,26.0]
[1748737615865,10.51800184,155.94,155.91,26.0]
[1748737616069,10.51800184,155.93,155.91,26.0]
[1748737616487,10.51800184,155.94,155.91,32.41387102]
[1748737616768,10.51800184,155.95,155.91,42.93187286]
[1748737616988,10.51800184,155.92,155.86,2.53848853]
[1748737617171,10.51800184,155.88,155.86,2.53848853]
[1748737617376,10.51800184,155.88,155.86,28.53848853]
[1748737617576,10.51800184,155.89,155.86,28.53848853]
[1748737618171,10.51800184,155.89,155.86,34.95447046]
[1748737618483,10.51800184,155.9,155.86,34.95447046]
[1748737618683,10.51800184,155.9,155.86,45.4724723]
[1748737618883,10.51800184,155.88,155.86,8.95447046]
[1748737619090,52.967872,155.95,155.86,8.95447046]
[1748737619091,10.51800184,155.87,155.86,8.95447046]
[1748737619474,10.51800184,155.88,155.86,8.95447046]
[1748737620473,39.92,155.92,155.86,8.95447046]
[1748737620474,39.92,155.92,155.86,19.4724723]
[1748737620674,10.51800184,155.89,155.86,8.95447046]
[1748737620888,10.51800184,155.88,155.86,8.95447046]
[1748737622094,10.51800184,155.87,155.86,8.95447046]
[1748737622989,10.51800184,155.89,155.86,8.95447046]
[1748737623579,34.17606157,155.95,155.87,10.51800184]
[1748737623895,10.51800184,155.91,155.86,61.51250822]
[1748737624074,10.51800184,155.9,155.86,61.51250822]
[1748737626080,39.94,155.94,155.86,61.51250822]
[1748737626081,10.51800184,155.91,155.86,61.51250822]
[1748737626494,10.51800184,155.91,155.87,10.51800184]
[1748737626987,10.51800184,155.93,155.89,26.0]
[1748737627198,10.51800184,155.93,155.9,6.41436818]
[1748737627603,10.51800184,155.93,155.9,22.45028864]
[1748737629293,12.01990184,155.95,155.9,32.96829048]
[1748737629496,10.51800184,155.96,155.91,10.51800184]
[1748737629918,10.51800184,155.97,155.92,10.51800184]
[1748737630302,10.51800184,155.97,155.93,10.51800184]
[1748737631009,10.51800184,155.98,155.94,10.51800184]
[1748737631319,10.51800184,155.98,155.95,6.41231163]
[1748737633487,10.51800184,155.98,155.95,22.44309072]
[1748737635097,12.17130184,155.99,155.95,22.44309072]
[1748737635503,10.51800184,155.99,155.95,22.44309072]
[1748737639601,10.56,156.01,155.95,32.96109256]
[1748737639918,12.08870184,156.0,155.96,10.51800184]
[1748737640443,10.51800184,155.99,155.95,32.96109256]
[1748737640996,10.51800184,155.99,155.95,22.44309072]
[1748737641195,10.51800184,155.99,155.95,32.96109256]
[1748737642519,12.08870184,156.0,155.95,32.96109256]
[1748737644004,12.08870184,156.0,155.93,134.533972]
[1748737644005,10.51800184,155.97,155.94,6.41272284]
[1748737645936,10.51800184,155.99,155.94,32.96253178]
[1748737646127,10.51800184,155.99,155.94,22.44452994]
[1748737646438,10.51800184,155.99,155.94,32.96253178]
[1748737649217,1.5707,156.0,155.94,32.96253178]
[1748737649427,12.08870184,156.0,155.95,10.51800184]
[1748737649722,12.08870184,156.0,155.96,6.41190048]
[1748737651029,10.51800184,155.99,155.96,6.41190048]
[1748737651625,10.51800184,155.99,155.95,6.41231163]
[1748737654235,1.5707,156.0,155.95,6.41231163]
[1748737654432,1.5707,156.0,155.95,32.96109256]
[1748737654615,1.5707,156.0,155.96,10.51800184]
[1748737655735,1.5707,156.0,155.95,16.03077909]
[1748737656041,1.5707,156.0,155.96,10.51800184]
[1748737657042,1.6651,156.04,155.99,36.51800184]
[1748737657254,1.6651,156.04,156.02,10.51800184]
[1748737657439,1.6651,156.04,156.01,10.51800184]
[1748737657635,1.6651,156.04,156.02,6.40943468]
[1748737657846,1.6651,156.04,156.0,6.41025641]
[1748737657847,10.51800184,156.03,156.0,6.41025641]
[1748737658059,10.51800184,156.01,155.99,32.41058909]
[1748737658242,10.51800184,156.02,155.99,32.41058909]
[1748737658444,10.51800184,156.03,155.99,32.41058909]
[1748737659047,10.51800184,156.02,155.99,32.41058909]
[1748737659250,10.51800184,156.01,155.99,32.41058909]
[1748737659771,10.51800184,156.03,155.99,48.43725746]
[1748737659938,1.6651,156.04,155.99,48.43725746]
[1748737660143,10.51800184,156.03,155.99,48.43725746]
[1748737661843,10.51800184,156.02,155.99,48.43725746]
[1748737662067,10.51800184,156.02,155.99,32.41058909]
[1748737662568,1.6651,156.04,155.99,32.41058909]
[1748737662776,10.51800184,156.02,155.99,32.41058909]
[1748737663342,10.51800184,156.02,155.98,6.41107834]
[1748737663548,10.51800184,156.01,155.98,6.41107834]
[1748737664772,10.51800184,156.02,155.98,6.41107834]
[1748737666466,6.40870556,156.04,155.98,6.41107834]
[1748737666467,10.51800184,156.01,155.98,6.41107834]
[1748737668376,16.85160184,156.02,155.98,6.41107834]
[1748737668666,1.608,156.01,155.98,6.41107834]
[1748737670452,1.608,156.01,155.98,32.95677603]
[1748737671137,1.608,156.01,155.99,10.51800184]
[1748737672069,1.608,156.01,156.0,6.41025641]
[1748737672274,10.51800184,156.04,156.0,32.95389927]
[1748737672874,12.14550184,156.05,156.0,32.95389927]
[1748737673174,1.6275,156.05,156.01,10.51800184]
[1748737673368,12.14550184,156.05,156.01,10.51800184]
[1748737674158,12.14550184,156.05,156.02,6.40943468]
[1748737674970,10.51800184,156.03,155.98,6.41107834]
[1748737675188,1.6275,156.05,155.98,6.41107834]
[1748737675386,10.51800184,156.03,155.98,16.92908018]
[1748737676256,10.51800184,156.03,155.98,32.95677603]
[1748737678282,10.51800184,156.02,155.98,22.43877419]
[1748737680389,10.51800184,156.02,155.98,6.41107834]
[1748737680695,10.51800184,156.0,155.97,6.41140826]
[1748737680885,10.51800184,155.98,155.95,6.41231163]
[1748737681086,10.51800184,155.99,155.95,6.41231163]
[1748737681281,10.51800184,155.98,155.95,6.41231163]
[1748737681708,10.51800184,155.99,155.95,6.41231163]
[1748737684784,10.51800184,155.99,155.94,16.93072468]
[1748737685209,8.1201,156.01,155.98,10.51800184]
[1748737685390,1.6087,156.01,155.99,10.51800184]
[1748737686599,10.51800184,156.03,155.99,10.51800184]
[1748737686787,16.55750184,156.05,156.0,32.95389927]
[1748737686982,10.51800184,156.04,156.0,32.95389927]
[1748737687599,10.51800184,156.02,156.0,6.41025641]
[1748737688106,10.51800184,156.03,156.0,6.41025641]
[1748737691211,10.51800184,156.03,155.99,6.41066735]
[1748737691713,10.51800184,156.03,155.97,42.02774546]
[1748737691714,10.51800184,156.02,155.97,26.0]
[1748737691916,10.51800184,156.02,155.98,6.410987]
[1748737691917,10.51800184,155.99,155.98,6.410987]
[1748737692317,1.6272,156.02,155.98,6.410987]
[1748737692697,12.14520184,156.02,155.98,6.410987]
[1748737694013,12.14520184,156.02,155.98,22.43868285]
[1748737695394,1.6272,156.02,155.98,32.95668469]
[1748737697706,1.6272,156.02,155.98,16.92898884]
[1748737699605,10.51800184,156.01,155.98,6.410987]
[1748737700418,12.14520184,156.02,155.98,6.410987]
[1748737713149,10.51800184,156.01,155.97,32.41143819]
[1748737713523,10.51800184,156.0,155.97,32.41143819]
[1748737714031,10.51800184,155.98,155.91,25.06360562]
[1748737714343,10.51800184,155.96,155.91,42.9319586]
[1748737714545,12.10960184,155.96,155.91,42.9319586]
[1748737714746,12.10960184,155.96,155.91,16.9319586]
[1748737715043,12.10960184,155.96,155.91,42.9319586]
[1748737717144,12.10960184,155.96,155.91,58.96685052]
[1748737718675,12.10960184,155.96,155.89,6.41477965]
[1748737718676,10.51800184,155.92,155.89,6.41477965]
[1748737718966,10.51800184,155.91,155.89,6.41477965]
[1748737719170,10.51800184,155.9,155.88,6.41506259]
[1748737720846,10.51800184,155.91,155.88,6.41506259]
[1748737721058,10.51800184,155.92,155.88,6.41506259]
[1748737721264,10.51800184,155.9,155.88,6.41506259]
[1748737721569,39.88,155.92,155.86,8.95414432]
[1748737721746,10.51800184,155.88,155.86,8.95414432]
[1748737722143,10.51800184,155.88,155.86,2.53848853]
[1748737722361,10.51800184,155.87,155.86,2.53848853]
[1748737724769,39.88,155.91,155.86,8.95437191]
[1748737724974,10.51800184,155.89,155.86,8.95437191]
[1748737727387,10.51800184,155.9,155.86,24.99440783]
[1748737727579,10.51800184,155.91,155.86,35.51240967]
[1748737729265,10.51800184,155.9,155.86,24.99440783]
[1748737732196,39.88,155.93,155.86,24.99440783]
[1748737732494,10.51800184,155.9,155.86,24.99440783]
[1748737736599,10.51800184,155.91,155.86,35.51240967]
[1748737736901,10.51800184,155.92,155.87,10.51800184]
[1748737737073,11.01800184,155.92,155.87,10.51800184]
[1748737737671,10.51800184,155.94,155.89,36.51800184]
[1748737737895,10.51800184,155.95,155.9,10.51800184]
[1748737738100,10.51800184,155.94,155.89,36.51800184]
[1748737738306,10.51800184,155.94,155.89,26.0]
[1748737738486,39.88,155.97,155.9,10.51800184]
[1748737738684,39.88,155.97,155.91,6.41395676]
[1748737738892,10.51800184,155.95,155.91,22.44884868]
[1748737739600,10.51800184,155.94,155.91,6.41395676]
[1748737740079,39.88,155.97,155.91,6.41395676]
[1748737740080,10.51800184,155.93,155.91,6.41395676]
[1748737740281,10.51800184,155.92,155.87,89.6]
[1748737740482,10.51800184,155.91,155.87,115.6]
[1748737740681,10.51800184,155.9,155.88,6.41519117]
[1748737742690,10.51800184,155.9,155.87,6.41560274]
[1748737744406,10.51800184,155.91,155.87,6.41560274]
[1748737744809,10.51800184,155.91,155.87,22.4546096]
[1748737744987,41.4729,155.92,155.87,32.97261144]
[1748737744988,51.99090184,155.92,155.87,32.97261144]
[1748737745494,50.39800184,155.92,155.87,32.97261144]
[1748737747011,10.51800184,155.91,155.87,48.4546096]
[1748737747211,10.51800184,155.89,155.87,6.41560274]
[1748737748583,10.51800184,155.9,155.87,6.41560274]
[1748737748788,10.51800184,155.91,155.87,6.41560274]
[1748737749307,39.88,155.92,155.87,6.41560274]
[1748737749308,10.51800184,155.9,155.87,6.41560274]
[1748737751114,10.51800184,155.88,155.86,8.95434846]
[1748737751318,6.41395676,155.91,155.86,2.53848853]
[1748737751485,6.41395676,155.91,155.86,8.95444352]
[1748737751819,10.51800184,155.88,155.86,8.95444352]
[1748737751996,39.88,155.92,155.86,8.95444352]
[1748737752199,10.51800184,155.91,155.86,19.47244536]
[1748737752513,11.01800184,155.91,155.86,24.99447944]
[1748737753013,10.51800184,155.9,155.86,24.99447944]
[1748737756352,0.5,155.91,155.86,24.99447944]
[1748737756521,10.51800184,155.9,155.86,24.99447944]
[1748737756842,6.41243878,155.95,155.87,10.51800184]
[1748737757147,10.51800184,155.92,155.87,10.51800184]
[1748737757550,10.51800184,155.92,155.88,6.41519117]
[1748737758046,10.51800184,155.91,155.88,6.41519117]
[1748737758564,10.51800184,155.94,155.89,10.51800184]
[1748737759054,41.4787,155.96,155.89,10.51800184]
[1748737759221,1.5187,155.96,155.89,10.51800184]
[1748737759525,1.5187,155.96,155.9,6.41436818]
[1748737759526,10.51800184,155.94,155.9,6.41436818]
[1748737759729,10.51800184,155.95,155.9,16.93237002]
[1748737763839,10.51800184,155.94,155.9,6.41436818]
[1748737764562,10.51800184,155.91,155.89,6.41464237]
[1748737765144,10.51800184,155.92,155.89,6.41464237]
[1748737765457,10.51800184,155.91,155.89,6.41464237]
[1748737766075,10.51800184,155.92,155.89,6.41464237]
[1748737766664,6.1537,155.94,155.88,26.0]
[1748737766665,10.51800184,155.91,155.88,32.41513087]
[1748737766870,10.51800184,155.91,155.88,6.41513087]
[1748737767770,10.51800184,155.91,155.87,6.41560274]
[1748737768974,6.41231163,155.95,155.87,16.93360458]
[1748737769270,47.93073145,155.96,155.89,10.51800184]
[1748737769464,10.51800184,155.94,155.89,10.51800184]
[1748737769863,10.51800184,155.94,155.9,6.41436818]
[1748737770074,10.51800184,155.95,155.9,16.93237002]
[1748737770947,18.48770184,155.96,155.91,10.51800184]
[1748737771662,18.48770184,155.96,155.92,6.4135454]
[1748737773987,12.03670184,155.96,155.92,6.4135454]
[1748737775057,12.03670184,155.96,155.91,10.51800184]
[1748737775855,10.51800184,155.95,155.9,32.96829048]
[1748737776257,10.51800184,155.93,155.9,6.41436818]
[1748737776467,10.51800184,155.91,155.88,6.41519117]
[1748737776667,10.51800184,155.9,155.88,6.41519117]
[1748737777184,10.51800184,155.91,155.87,6.41560274]
[1748737777566,10.51800184,155.9,155.87,6.41560274]
[1748737777970,40.04,155.94,155.87,6.41560274]
[1748737778178,10.51800184,155.91,155.87,6.41560274]
[1748737778487,10.51800184,155.91,155.87,16.93360458]
[1748737778689,10.51800184,155.91,155.87,6.41560274]
[1748737778857,10.51800184,155.91,155.87,16.93360458]
[1748737779060,10.51800184,155.91,155.87,6.41560274]
[1748737780674,6.0741,155.92,155.87,6.41560274]
[1748737780879,10.51800184,155.9,155.87,6.41560274]
[1748737781090,10.51800184,155.88,155.86,34.95441419]
[1748737781564,10.51800184,155.87,155.86,2.53848853]
[1748737782374,40.12,155.89,155.86,2.53848853]
[1748737782582,10.51800184,155.87,155.86,2.53848853]
[1748737784391,0.14216157,155.88,155.86,2.53848853]
[1748737784568,10.51800184,155.87,155.86,2.53848853]
[1748737785987,57.05288942,155.89,155.86,2.53848853]
[1748737786181,11.01800184,155.87,155.86,2.53848853]
[1748737789777,11.01800184,155.87,155.86,8.9545029]
[1748737790397,11.01800184,155.87,155.86,2.53848853]
[1748737790593,10.51800184,155.87,155.86,2.53848853]
[1748737796091,10.51800184,155.87,155.86,8.9545029]
[1748737796885,10.51800184,155.87,155.86,2.53848853]
[1748737798290,10.51800184,155.87,155.86,8.9545029]
[1748737799585,10.51800184,155.87,155.86,2.53848853]
[1748737800018,10.51800184,155.87,155.86,8.9545029]
[1748737800790,10.51800184,155.89,155.86,8.9545029]
[1748737801204,10.51800184,155.88,155.86,8.9545029]
[1748737801993,10.51800184,155.87,155.86,2.53848853]
[1748737802923,57.05360458,155.87,155.86,2.53848853]
[1748737803217,58.45280184,155.87,155.86,2.53848853]
[1748737803421,64.86840458,155.87,155.86,2.53848853]
[1748737803593,58.45280184,155.87,155.86,2.53848853]
[1748737804708,58.45280184,155.87,155.86,0.87188853]
[1748737804709,65.01056615,155.87,155.86,0.87188853]
[1748737804894,6.41724956,155.83,155.79,0.8569169]
[1748737805093,10.51800184,155.8,155.79,0.8569169]
[1748737805318,40.2,155.82,155.79,0.8569169]
[1748737805319,40.2,155.82,155.79,7.27581413]
[1748737805525,50.71800184,155.82,155.79,7.27581413]
[1748737805821,50.71800184,155.82,155.79,0.8569169]
[1748737805822,10.51800184,155.81,155.79,0.8569169]
[1748737805995,10.51800184,155.81,155.79,7.27571373]
[1748737806193,10.51800184,155.8,155.79,0.8569169]
[1748737806396,10.51800184,155.81,155.79,0.8569169]
[1748737807533,10.51800184,155.81,155.79,7.27570895]
[1748737807907,10.66,155.84,155.79,7.27570895]
[1748737808233,10.51800184,155.83,155.79,7.27570895]
[1748737808529,10.51800184,155.81,155.79,7.27570895]
[1748737809037,10.51800184,155.8,155.79,0.8569169]
[1748737809408,10.51800184,155.81,155.79,7.27571482]
[1748737810312,17.07685878,155.84,155.79,7.27571482]
[1748737810313,10.51800184,155.8,155.79,0.8569169]
[1748737811030,10.51800184,155.81,155.79,7.27580023]
[1748737811726,10.51800184,155.81,155.79,0.8569169]
[1748737811935,10.51800184,155.8,155.79,0.8569169]
[1748737813725,10.66,155.84,155.79,7.27574402]
[1748737813925,10.51800184,155.8,155.79,0.8569169]
[1748737816137,50.67800184,155.8,155.79,0.8569169]
[1748737816341,57.09648707,155.8,155.79,0.8569169]
[1748737816719,40.16,155.8,155.79,0.8569169]
[1748737816917,40.16,155.8,155.79,7.27581413]
[1748737817229,40.16,155.8,155.79,0.8569169]
[1748737817547,57.23864864,155.8,155.79,0.8569169]
[1748737817719,10.51800184,155.8,155.79,0.8569169]
[1748737818340,40.72,155.82,155.79,0.8569169]
[1748737818659,10.51800184,155.8,155.79,0.8569169]
[1748737818956,10.51800184,155.84,155.79,17.79381597]
[1748737819924,10.51800184,155.85,155.8,10.51800184]
[1748737820125,10.51800184,155.84,155.79,17.79381597]
[1748737820915,10.51800184,155.83,155.79,17.79381597]
[1748737822127,10.51800184,155.84,155.79,17.79381597]
[1748737823846,10.51800184,155.84,155.79,7.27581413]
[1748737824049,10.51800184,155.84,155.79,17.79381597]
[1748737824263,10.51800184,155.84,155.79,7.27581413]
[1748737824456,10.51800184,155.84,155.79,17.79381597]
[1748737825038,10.51800184,155.84,155.79,33.84105905]
[1748737825244,72.9858,155.88,155.8,10.51800184]
[1748737825555,10.51800184,155.85,155.8,10.51800184]
[1748737826378,10.51800184,155.84,155.8,10.51800184]
[1748737826941,10.51800184,155.85,155.81,6.41807329]
[1748737828754,6.41575506,155.87,155.81,6.41807329]
[1748737828937,10.51800184,155.85,155.81,6.41807329]
[1748737829352,10.51800184,155.84,155.81,6.41807329]
[1748737830042,10.51800184,155.84,155.8,6.41848523]
[1748737830656,10.51800184,155.82,155.79,7.27565856]
[1748737831262,10.51800184,155.81,155.79,7.27565856]
[1748737831476,10.51800184,155.82,155.79,7.27565856]
[1748737831665,10.51800184,155.8,155.79,0.8569169]
[1748737832856,40.72,155.83,155.79,0.8569169]
[1748737833056,10.51800184,155.81,155.79,7.27580425]
[1748737833247,10.51800184,155.82,155.79,7.27580425]
[1748737833661,10.51800184,155.81,155.79,7.27580425]
[1748737834998,10.51800184,155.8,155.79,7.27580425]
[1748737836072,10.51800184,155.8,155.79,0.8569169]
[1748737836273,10.51800184,155.8,155.79,7.27581413]
[1748737836444,10.51800184,155.8,155.79,0.8569169]
[1748737839966,12.7339866,155.82,155.79,0.8569169]
[1748737840156,10.51800184,155.8,155.79,0.8569169]
[1748737840569,6.3161,155.82,155.79,0.8569169]
[1748737840768,10.51800184,155.8,155.79,7.27581413]
[1748737842876,20.0,182.16,155.79,33.84105905]
[1748737842877,10.51800184,155.85,155.79,33.84105905]
[1748737843183,10.51800184,155.86,155.81,10.51800184]
[1748737843865,1.5054,155.87,155.81,10.51800184]
[1748737844075,6.2999,155.89,155.83,10.51800184]
[1748737844269,6.2999,155.89,155.84,10.51800184]
[1748737844573,10.51800184,155.89,155.85,10.51800184]
[1748737846180,10.51800184,155.9,155.86,10.51800184]
[1748737846882,10.51800184,155.9,155.87,6.41560274]
[1748737847084,10.51800184,155.9,155.86,10.51800184]
[1748737847479,10.51800184,155.9,155.85,16.93442789]
[1748737847678,10.51800184,155.89,155.85,10.51800184]
[1748737847866,1.5998,155.91,155.85,10.51800184]
[1748737848070,10.51800184,155.89,155.85,10.51800184]
[1748737849189,10.51800184,155.88,155.83,6.41686374]
[1748737849370,10.51800184,155.88,155.83,16.93486558]
[1748737850083,10.51800184,155.87,155.83,6.41686374]
[1748737850391,10.51800184,155.85,155.81,47.51800184]
[1748737850573,6.41482239,155.89,155.82,10.51800184]
[1748737850775,10.51800184,155.86,155.82,10.51800184]
[1748737851365,10.51800184,155.86,155.82,16.93540991]
[1748737853103,10.51800184,155.86,155.81,53.93603148]
[1748737853474,10.51800184,155.83,155.8,6.4184031]
[1748737855403,10.51800184,155.84,155.8,16.93640494]
[1748737855610,10.51800184,155.84,155.8,6.4184031]
[1748737855789,10.51800184,155.84,155.8,16.93640494]
[1748737856821,10.51800184,155.84,155.8,10.51800184]
[1748737857104,10.51800184,155.84,155.79,43.79366598]
[1748737857301,10.51800184,155.83,155.79,43.79366598]
[1748737857501,10.51800184,155.84,155.79,43.79366598]
[1748737858108,10.51800184,155.83,155.79,33.27566414]
[1748737858320,10.51800184,155.83,155.79,43.79366598]
[1748737858626,67.8182654,155.88,155.79,43.79366598]
[1748737858627,10.51800184,155.84,155.79,43.79366598]
[1748737861481,10.51800184,155.86,155.81,10.51800184]
[1748737861688,21.51800184,155.88,155.83,10.51800184]
[1748737861909,10.51800184,155.88,155.83,10.51800184]
[1748737862691,10.51800184,155.87,155.84,6.41683778]
[1748737864221,10.51800184,155.88,155.84,6.41683778]
[1748737864380,10.51800184,155.87,155.84,6.41683778]
[1748737865728,6.41436818,155.9,155.83,6.41724956]
[1748737866027,10.51800184,155.87,155.83,6.41724956]
[1748737866383,10.51800184,155.85,155.79,26.8569169]
[1748737866605,10.51800184,155.83,155.8,6.41848523]
[1748737867604,10.51800184,155.84,155.8,6.41848523]
[1748737867996,10.51800184,155.85,155.8,16.93648707]
[1748737868922,10.51800184,155.85,155.8,32.98270016]
[1748737869801,10.51800184,155.87,155.83,10.51800184]
[1748737870114,10.51800184,155.89,155.84,10.51800184]
[1748737870915,10.51800184,155.89,155.83,26.0]
[1748737870916,8.0568,155.92,155.86,10.51800184]
[1748737871206,10.51800184,155.91,155.86,10.51800184]
[1748737871721,8.0568,155.92,155.83,44.64964886]
[1748737871722,8.0568,155.92,155.88,10.51800184]
[1748737872511,6.3932,155.92,155.88,10.51800184]
[1748737872906,6.3932,155.92,155.86,26.0]
[1748737873502,6.3932,155.92,155.88,10.51800184]
[1748737873905,6.3932,155.92,155.88,16.93298355]
[1748737874919,6.3932,155.92,155.88,10.51800184]
[1748737875123,16.91120184,155.92,155.87,16.93346309]
[1748737875512,16.91120184,155.92,155.87,10.51800184]
[1748737876224,10.51800184,155.9,155.86,36.51800184]
[1748737876724,10.51800184,155.88,155.86,26.0]
[1748737877328,10.51800184,155.89,155.86,26.0]
[1748737877906,10.51800184,155.9,155.86,26.0]
[1748737878104,16.93239058,155.9,155.86,26.0]
[1748737878516,16.93239058,155.9,155.85,21.45800184]
[1748737878746,10.51800184,155.89,155.85,10.94]
[1748737880105,16.93319301,155.88,155.85,10.94]
[1748737880706,10.51800184,155.86,155.81,10.51800184]
[1748737880923,10.51800184,155.86,155.81,36.51800184]
[1748737881734,10.51800184,155.85,155.81,26.0]
[1748737882031,10.51800184,155.84,155.81,26.0]
[1748737883343,16.93497566,155.84,155.8,10.94]
[1748737883653,10.51800184,155.83,155.8,10.94]
[1748737885742,16.93534561,155.83,155.8,10.94]
[1748737885927,10.51800184,155.83,155.8,10.94]
[1748737886736,6.41601301,155.87,155.8,27.87632961]
[1748737886933,10.51800184,155.85,155.8,27.87632961]
[1748737887448,10.51800184,155.84,155.8,27.87632961]
[1748737887622,10.51800184,155.84,155.8,17.35832777]
[1748737888249,10.51800184,155.83,155.8,10.94]
[1748737889527,16.93537063,155.83,155.8,10.94]
[1748737890142,10.51800184,155.83,155.8,10.94]
[1748737891849,10.51800184,155.84,155.8,17.35834198]
[1748737892544,10.51800184,155.86,155.81,10.51800184]
[1748737892725,10.51800184,155.85,155.81,10.51800184]
[1748737893156,10.51800184,155.84,155.8,27.87634382]
[1748737893361,10.51800184,155.83,155.8,10.94]
[1748737893553,10.51800184,155.83,155.8,17.35842671]
[1748737894062,10.51800184,155.83,155.8,6.41842671]
[1748737895361,10.51800184,155.85,155.8,16.93642855]
[1748737896244,10.51800184,155.84,155.8,6.41842671]
[1748737896847,10.51800184,155.85,155.8,16.93642855]
[1748737897976,10.51800184,155.86,155.81,10.51800184]
[1748737898171,6.41533666,155.88,155.81,10.51800184]
[1748737898344,10.51800184,155.86,155.82,6.4176614]
[1748737898545,10.51800184,155.85,155.82,6.4176614]
[1748737899666,6.41519117,155.88,155.81,6.41807329]
[1748737899855,10.51800184,155.85,155.81,6.41807329]
[1748737902148,6.41607728,155.86,155.81,6.41807329]
[1748737902149,10.51800184,155.84,155.81,6.41807329]
[1748737902449,10.51800184,155.85,155.81,6.41807329]
[1748737903956,10.51800184,155.84,155.81,6.41807329]